fUSD/lending_fUSD_20250620
["ID","MTS","AMOUNT","RATE_DAILY","PERIOD"]
[366675226,1750407068208,-1582.22319994,0.00025988,4]
[366675227,1750407068218,-789.07,0.00025988,4]
[366675228,1750407068229,-789.07,0.00025988,4]
[366675229,1750407068239,-789.07,0.00025988,4]
[366675230,1750407068249,-789.07,0.00025988,4]
[366675231,1750407068260,-789.07,0.00025988,4]
[366675232,1750407068270,-789.07,0.00025988,4]
[366675233,1750407068281,-789.07,0.00025988,4]
[366675234,1750407068292,-789.07,0.00025988,4]
[366675235,1750407068302,-789.07,0.00025988,4]
[366675236,1750407068312,-789.07,0.00025988,4]
[366675237,1750407068324,-789.07,0.00025988,4]
[366675238,1750407068334,-789.07,0.00025988,4]
[366675239,1750407068344,-789.07,0.00025988,4]
[366675240,1750407068354,-789.14457573,0.00025988,4]
[366675241,1750407068364,-1008.25,0.00025988,4]
[366675242,1750407068374,-1008.25,0.00025988,4]
[366675243,1750407068384,-1008.25,0.00025988,4]
[366675244,1750407068393,-1008.25,0.00025988,4]
[366675245,1750407068403,-1008.25,0.00025988,4]
[366675246,1750407068413,-1008.25,0.00025988,4]
[366675247,1750407068423,-1008.25,0.00025988,4]
[366675248,1750407068433,-1008.25,0.00025988,4]
[366675249,1750407068443,-1008.25,0.00025988,4]
[366675250,1750407068453,-1008.25,0.00025988,4]
[366675251,1750407068464,-1008.25,0.00025988,4]
[366675252,1750407068473,-1008.25,0.00025988,4]
[366675253,1750407068483,-1008.25,0.00025988,4]
[366675254,1750407068493,-1008.42868219,0.00025988,4]
[366675255,1750407068503,-500.0,0.00025988,4]
[366675256,1750407068513,-3949.3,0.00025988,4]
[366675257,1750407068523,-3949.3,0.00025988,4]
[366675258,1750407068533,-3949.3,0.00025988,4]
[366675259,1750407068543,-3949.3,0.00025988,4]
[366675260,1750407068552,-3949.3,0.00025988,4]
[366675261,1750407068562,-3949.3,0.00025988,4]
[366675262,1750407068572,-3949.3,0.00025988,4]
[366675263,1750407068582,-3949.3,0.00025988,4]
[366675264,1750407068592,-3949.3,0.00025988,4]
[366675265,1750407068602,-3949.3,0.00025988,4]
[366675266,1750407068613,-3949.3,0.00025988,4]
[366675267,1750407068626,-3949.3,0.00025988,4]
[366675268,1750407068636,-3949.3,0.00025988,4]
[366675269,1750407068647,-3949.3,0.00025988,4]
[366675270,1750407068658,-3949.44151134,0.00025988,4]
[366675271,1750407068668,-150.0,0.00025988,2]
[366675272,1750407068678,-150.0,0.00025988,2]
[366675273,1750407068688,-150.0,0.00025988,2]
[366675274,1750407068699,-252.23499682,0.00025988,2]
[366675275,1750407068710,-500.0,0.00025988,2]
[366675276,1750407068719,-500.0,0.00025988,2]
[366675277,1750407068729,-500.0,0.00025988,2]
[366675278,1750407068739,-223.31154141,0.00025988,2]
[366675279,1750407068749,-151.0,0.00025989,7]
[366675280,1750407068759,-151.0,0.00025989,7]
[366675281,1750407068768,-172.305992,0.00025989,7]
[366675282,1750407068778,-172.305992,0.00025989,7]
[366675283,1750407068788,-911.413089,0.00025989,7]
[366675284,1750407068799,-911.413089,0.00025989,7]
[366675285,1750407068811,-151.0,0.00025989,7]
[366675286,1750407068822,-151.0,0.00025989,7]
[366675287,1750407068832,-151.0,0.00025989,7]
[366675288,1750407068842,-190.403063,0.00025989,7]
[366675289,1750407068852,-151.0,0.00025989,7]
[366675290,1750407068862,-151.0,0.00025989,7]
[366675291,1750407068872,-190.403063,0.00025989,7]
[366675292,1750407068882,-409.510142,0.00025989,7]
[366675293,1750407068891,-409.510142,0.00025989,7]
[366675294,1750407068901,-360.365447,0.00025989,7]
[366675295,1750407068910,-360.365447,0.00025989,7]
[366675296,1750407068921,-360.365447,0.00025989,7]
[366675297,1750407068931,-360.365447,0.00025989,7]
[366675298,1750407068941,-151.0,0.00025989,7]
[366675299,1750407068951,-151.0,0.00025989,7]
[366675300,1750407068962,-151.0,0.00025989,7]
[366675301,1750407068971,-151.0,0.00025989,7]
[366675302,1750407068983,-2558.843691,0.00025989,7]
[366675303,1750407068993,-2558.843691,0.00025989,7]
[366675304,1750407069003,-2558.843691,0.00025989,7]
[366675305,1750407069013,-2558.843691,0.00025989,7]
[366675306,1750407069024,-209.03364,0.00025989,7]
[366675307,1750407069034,-209.03364,0.00025989,7]
[366675308,1750407069044,-554.417366,0.00025989,7]
[366675309,1750407069053,-166.796187,0.00025989,7]
[366675310,1750407069063,-209.03364,0.00025989,7]
[366675311,1750407069075,-209.03364,0.00025989,7]
[366675312,1750407069085,-554.417366,0.00025989,7]
[366675313,1750407069094,-166.796187,0.00025989,7]
[366675314,1750407069104,-151.0,0.00025989,7]
[366675315,1750407069113,-151.498592,0.00025989,7]
[366675316,1750407069122,-160.107388,0.00025989,7]
[366675317,1750407069132,-160.107388,0.00025989,7]
[366675318,1750407069141,-160.107388,0.00025989,7]
[366675319,1750407069150,-160.107388,0.00025989,7]
[366675320,1750407069160,-1133.473432,0.00025989,7]
[366675321,1750407069170,-1133.473432,0.00025989,7]
[366675322,1750407069180,-278.413062,0.00025989,7]
[366675323,1750407069190,-278.413062,0.00025989,7]
[366675324,1750407069199,-278.413062,0.00025989,7]
[366675325,1750407069209,-278.413062,0.00025989,7]
[366675326,1750407069219,-157.717055,0.00025989,7]
[366675327,1750407069228,-157.717055,0.00025989,7]
[366675328,1750407069237,-157.717055,0.00025989,7]
[366675329,1750407069246,-157.717055,0.00025989,7]
[366675330,1750407069256,-151.0,0.00025989,7]
[366675331,1750407069265,-151.0,0.00025989,7]
[366675332,1750407069274,-151.0,0.00025989,7]
[366675333,1750407069284,-352.2,0.00025989,7]
[366675334,1750407069294,-352.2,0.00025989,7]
[366675335,1750407069304,-186.5679,0.00025989,7]
[366675336,1750407069313,-186.5679,0.00025989,7]
[366675337,1750407069325,-186.5679,0.00025989,7]
[366675338,1750407069334,-186.5679,0.00025989,7]
[366675339,1750407069344,-604.506078,0.00025989,7]
[366675340,1750407069354,-604.506078,0.00025989,7]
[366675341,1750407069363,-604.506078,0.00025989,7]
[366675342,1750407069373,-604.506078,0.00025989,7]
[366675343,1750407069383,-151.0,0.00025989,7]
[366675344,1750407069392,-151.0,0.00025989,7]
[366675345,1750407069401,-151.0,0.00025989,7]
[366675346,1750407069410,-151.0,0.00025989,7]
[366675347,1750407069419,-270.547979,0.00025989,7]
[366675348,1750407069429,-270.547979,0.00025989,7]
[366675349,1750407069438,-729.180976,0.00025989,7]
[366675350,1750407069447,-729.180976,0.00025989,7]
[366675351,1750407069456,-729.180976,0.00025989,7]
[366675352,1750407069466,-729.180976,0.00025989,7]
[366675353,1750407069476,-151.0,0.00025989,7]
[366675354,1750407069486,-151.0,0.00025989,7]
[366675355,1750407069495,-151.0,0.00025989,7]
[366675356,1750407069505,-199.864675,0.00025989,7]
[366675357,1750407069515,-304.822421,0.00025989,7]
[366675358,1750407069525,-304.822421,0.00025989,7]
[366675359,1750407069535,-720.548446,0.00025989,7]
[366675360,1750407069544,-720.548446,0.00025989,7]
[366675361,1750407069554,-2834.976259,0.00025989,7]
[366675362,1750407069563,-2834.976259,0.00025989,7]
[366675363,1750407069573,-311.153342,0.00025989,7]
[366675364,1750407069583,-311.153342,0.00025989,7]
[366675365,1750407069592,-462.264471,0.00025989,7]
[366675366,1750407069602,-462.264471,0.00025989,7]
[366675367,1750407069611,-245.722922,0.00025989,7]
[366675368,1750407069625,-245.722922,0.00025989,7]
[366675369,1750407069636,-245.722922,0.00025989,7]
[366675370,1750407069646,-245.722922,0.00025989,7]
[366675371,1750407069659,-1799.72,0.00025989,4]
[366675372,1750407069668,-270.450216,0.00025989,7]
[366675373,1750407069678,-270.450216,0.00025989,7]
[366675374,1750407069688,-198.867412,0.00025989,7]
[366675375,1750407069697,-198.867412,0.00025989,7]
[366675376,1750407069708,-714717.5605367,0.00025989,3]
[366675377,1750407070982,-508.2,0.00025234,2]
[366675378,1750407070993,-490.0,0.00025778,4]
[366675379,1750407071003,-4276.05635495,0.00025989,3]
[366675380,1750407071015,-126154.81162781,0.00025989,3]
[366675381,1750407071035,-3657.11829189,0.00025989,3]
[366675382,1750407071048,-739.5963524,0.00025989,3]
[366675383,1750407071073,-490.0,0.00025767,2]
[366675384,1750407071083,-474.75766151,0.00025989,3]
[366675385,1750407071095,-1916.07448804,0.00025989,3]
[366675386,1750407081813,202.0,0.00022785,2]
[366675388,1750407213300,150.0,0.0002311,2]
[366675396,1750407502146,1529.4,0.00025,120]
[366675412,1750407693693,154.36,0.00013699,2]
[366675419,1750407803256,150.0,1e-08,2]
[366675423,1750407929679,3098.47344096,0.00016978,2]
[366675427,1750407987449,15039.22588065,0.00022,2]
[366675437,1750408130005,12549.29891143,0.000194,2]
[366675438,1750408130035,13850.70108857,0.000194,2]
[366675439,1750408164150,-202.0,0.00023702,2]
[366675440,1750408164174,-202.0,0.00023702,2]
[366675441,1750408164206,-203.0,0.00023702,2]
[366675442,1750408164230,-305.55779686,0.00023768,2]
[366675445,1750408187369,226.0,0.000231,2]
[366675463,1750408232551,-514.8874933,0.00023768,2]
[366675464,1750408232575,-179.55470984,0.00023768,2]
[366675465,1750408232584,-150.0,0.00024136,2]
[366675466,1750408232594,-224.32,0.00024279,2]
[366675467,1750408232604,-175.0,0.00024365,7]
[366675468,1750408232613,-150.0,0.00024494,2]
[366675469,1750408232625,-150.0,0.00024495,2]
[366675470,1750408232635,-300.0,0.00024515,2]
[366675471,1750408232645,-202.0,0.00024517,2]
[366675472,1750408232655,-638.69958513,0.00024564,2]
[366675473,1750408232664,-150.0,0.00024655,2]
[366675474,1750408232674,-175.0,0.00024664,2]
[366675475,1750408232684,-821.19042664,0.0002467,2]
[366675476,1750408232693,-150.0,0.00024672,2]
[366675477,1750408232703,-150.0,0.00024696,2]
[366675478,1750408232713,-200.0,0.00024749,7]
[366675479,1750408232723,-1200.0,0.00024771,2]
[366675480,1750408232733,-1957.856,0.00024772,2]
[366675481,1750408232742,-207.4,0.00024772,2]
[366675482,1750408232752,-1000.0,0.00024787,2]
[366675483,1750408232761,-300.0,0.00024826,2]
[366675484,1750408232772,-2030.296672,0.00024827,2]
[366675485,1750408232781,-150.0,0.00024847,2]
[366675486,1750408232791,-150.0,0.0002487,2]
[366675487,1750408232801,-2105.41764886,0.00024882,2]
[366675488,1750408232811,-767.27292856,0.000249,12]
[366675489,1750408232821,-2183.31810187,0.00024937,2]
[366675490,1750408232832,-151.0,0.00024965,2]
[366675492,1750408232841,-151.0,0.00024965,2]
[366675493,1750408232850,-507.41038376,0.00024965,2]
[366675495,1750408232860,-153.88421641,0.00024965,2]
[366675497,1750408232872,-500.0,0.00024965,2]
[366675499,1750408232881,-500.0,0.00024965,2]
[366675501,1750408232892,-500.0,0.00024965,2]
[366675503,1750408232902,-500.0,0.00024965,2]
[366675506,1750408232913,-500.0,0.00024965,2]
[366675508,1750408232922,-500.0,0.00024965,2]
[366675509,1750408232933,-418.40847521,0.00024965,2]
[366675511,1750408232943,-500.0,0.00024965,2]
[366675513,1750408232954,-500.0,0.00024965,2]
[366675516,1750408232964,-500.0,0.00024965,2]
[366675518,1750408232974,-500.0,0.00024965,2]
[366675520,1750408232985,-151.0,0.00024965,2]
[366675522,1750408232995,-500.0,0.00024965,2]
[366675524,1750408233005,-500.0,0.00024965,2]
[366675526,1750408233015,-500.0,0.00024965,2]
[366675528,1750408233024,-500.0,0.00024965,2]
[366675529,1750408233034,-500.0,0.00024965,2]
[366675531,1750408233044,-500.0,0.00024965,2]
[366675533,1750408233053,-500.0,0.00024965,2]
[366675536,1750408233065,-151.0,0.00024965,2]
[366675537,1750408233076,-500.0,0.00024965,2]
[366675540,1750408233086,-500.0,0.00024965,2]
[366675541,1750408233096,-151.0,0.00024965,2]
[366675543,1750408233107,-500.0,0.00024965,2]
[366675545,1750408233119,-500.0,0.00024965,2]
[366675548,1750408233130,-151.0,0.00024965,2]
[366675550,1750408233140,-500.0,0.00024965,2]
[366675551,1750408233150,-171.77755968,0.00024965,2]
[366675553,1750408233160,-151.0,0.00024965,2]
[366675555,1750408233171,-500.0,0.00024965,2]
[366675558,1750408233180,-500.0,0.00024965,2]
[366675560,1750408233191,-437.83457863,0.00024965,2]
[366675562,1750408233201,-151.0,0.00024965,2]
[366675564,1750408233215,-151.0,0.00024965,2]
[366675566,1750408233225,-151.0,0.00024965,2]
[366675568,1750408233235,-228.53871549,0.00024965,2]
[366675570,1750408233245,-151.0,0.00024965,2]
[366675572,1750408233255,-151.0,0.00024965,2]
[366675574,1750408233265,-188.0,0.00024965,2]
[366675576,1750408233275,-421.1,0.00024966,2]
[366675577,1750408233286,-300.0,0.00024979,2]
[366675579,1750408233295,-10008.67,0.0002498,2]
[366675581,1750408233305,-2264.10087164,0.00024992,2]
[366675583,1750408233314,-606.45325095,0.00025,2]
[366675585,1750408233324,-7548.57,0.00025,5]
[366675587,1750408233334,-443.42794066,0.00025,30]
[366675589,1750408233344,-7034.63139672,0.00025,2]
[366675591,1750408233354,-168.0,0.00025,7]
[366675593,1750408233364,-154.13271162,0.0002502,2]
[366675595,1750408233375,-175.0,0.00025041,7]
[366675597,1750408233385,-2347.87260389,0.00025047,2]
[366675599,1750408233395,-565.12123146,0.00025057,2]
[366675601,1750408233405,-767.27292833,0.00025072,12]
[366675603,1750408233415,-150.0,0.00025092,2]
[366675605,1750408233425,-2434.74389024,0.00025102,2]
[366675607,1750408233435,-2524.82941417,0.00025157,2]
[366675609,1750408233444,-150.0,0.00025161,2]
[366675611,1750408233454,-774.02,0.00025178,2]
[366675613,1750408233464,-709.66,0.00025178,2]
[366675615,1750408233474,-150.0,0.00025181,2]
[366675616,1750408233484,-150.0,0.00025187,2]
[366675619,1750408233494,-2618.2481025,0.00025212,2]
[366675620,1750408233504,-767.27292833,0.00025245,12]
[366675623,1750408233515,-171.23,0.00025253,2]
[366675624,1750408233525,-2715.12328229,0.00025267,2]
[366675626,1750408233535,-638.17247425,0.00025291,2]
[366675628,1750408233544,-150.0,0.00025311,2]
[366675630,1750408233554,-150.0,0.00025312,2]
[366675632,1750408233564,-2815.58284374,0.00025322,2]
[366675635,1750408233574,-1000.0,0.00025375,2]
[366675636,1750408233584,-2919.75940895,0.00025377,2]
[366675638,1750408233594,-150.0,0.0002538,2]
[366675640,1750408233603,-767.27292833,0.00025417,13]
[366675642,1750408233613,-3027.79050709,0.00025432,2]
[366675644,1750408233626,-150.0,0.00025445,2]
[366675647,1750408233636,-168.45,0.00025464,2]
[366675649,1750408233647,-742.710469,0.00025468,8]
[366675650,1750408233657,-150.0,0.00025482,2]
[366675652,1750408233667,-3139.81875585,0.00025487,2]
[366675653,1750408233677,-150.0,0.00025494,2]
[366675655,1750408233686,-152.0,0.00025539,3]
[366675657,1750408233696,-530.61301326,0.00025542,2]
[366675659,1750408233707,-150.0,0.0002555,2]
[366675661,1750408233716,-6443.7957,0.00025558,2]
[366675663,1750408233726,-638.17247426,0.0002556,2]
[366675665,1750408233736,-1000.0,0.00025568,2]
[366675667,1750408233747,-559.93348692,0.0002557,7]
[366675668,1750408233757,-150.0,0.00025571,2]
[366675671,1750408233769,-1349.19388234,0.00025577,2]
[366675672,1750408233778,-516.9595,0.00025579,2]
[366675674,1750408233788,-227.34513266,0.00025583,2]
[366675676,1750408233798,-767.27292833,0.0002559,13]
[366675678,1750408233808,-1349.19388228,0.00025612,2]
[366675680,1750408233818,-150.64,0.00025628,2]
[366675682,1750408233828,-150.64,0.00025628,2]
[366675684,1750408233838,-155.71153853,0.00025631,2]
[366675686,1750408233850,-500.0,0.00025637,2]
[366675688,1750408233859,-633.41737313,0.00025637,2]
[366675690,1750408233871,-86337.72162853,0.00025638,5]
[366675695,1750408233903,-28571.57562745,0.00025638,5]
[366675697,1750408233915,-467.50643639,0.00025638,5]
[366675699,1750408233928,-2208.60206527,0.00025638,5]
[366675707,1750408234000,-1349.19388228,0.00025647,2]
[366675708,1750408234010,-154.20162275,0.00025653,2]
[366675710,1750408234020,-159.0115806,0.00025653,2]
[366675712,1750408234030,-271.66854659,0.00025657,2]
[366675714,1750408234039,-46709.83198112,0.00025658,2]
[366675716,1750408234049,-4586.09238667,0.00025668,2]
[366675718,1750408234060,-2108.82728498,0.00025668,2]
[366675721,1750408234072,-364.502,0.00025668,2]
[366675723,1750408234084,-45647.43682835,0.00025668,2]
[366675725,1750408234094,-1656.2405,0.00025677,2]
[366675727,1750408234103,-797.19856915,0.00025677,2]
[366675729,1750408234113,-159.12528347,0.00025677,2]
[366675731,1750408234125,-175.0,0.00025677,2]
[366675733,1750408234134,-490.0,0.00025678,4]
[366675735,1750408234144,-490.0,0.00025678,4]
[366675737,1750408234154,-490.0,0.00025678,4]
[366675739,1750408234164,-490.0,0.00025678,4]
[366675741,1750408234174,-490.0,0.00025678,4]
[366675743,1750408234184,-490.0,0.00025678,4]
[366675745,1750408234195,-490.0,0.00025678,4]
[366675747,1750408234207,-607.37,0.00025678,4]
[366675748,1750408234217,-712.69,0.00025678,4]
[366675749,1750408234226,-490.0,0.00025678,4]
[366675750,1750408234237,-490.0,0.00025678,4]
[366675751,1750408234247,-490.0,0.00025678,4]
[366675752,1750408234257,-524.83,0.00025678,4]
[366675753,1750408234267,-490.0,0.00025678,4]
[366675754,1750408234278,-490.0,0.00025678,4]
[366675755,1750408234291,-492.1940653,0.00025678,4]
[366675756,1750408234302,-490.0,0.00025678,4]
[366675757,1750408234312,-772.51,0.00025678,4]
[366675758,1750408234322,-1233.2,0.00025678,4]
[366675759,1750408234332,-490.0,0.00025678,4]
[366675760,1750408234342,-490.0,0.00025678,4]
[366675761,1750408234352,-490.0,0.00025678,4]
[366675762,1750408234361,-773.34,0.00025678,4]
[366675763,1750408234373,-500.0,0.00025678,4]
[366675764,1750408234383,-1230.34,0.00025678,4]
[366675765,1750408234393,-490.0,0.00025678,4]
[366675766,1750408234403,-490.0,0.00025678,4]
[366675767,1750408234413,-490.0,0.00025678,4]
[366675768,1750408234423,-490.0,0.00025678,4]
[366675769,1750408234434,-962.5,0.00025678,4]
[366675770,1750408234444,-808.5,0.00025678,4]
[366675771,1750408234454,-535.21,0.00025678,4]
[366675772,1750408234463,-490.0,0.00025678,4]
[366675773,1750408234474,-606.25,0.00025678,4]
[366675774,1750408234483,-2107.02,0.00025678,4]
[366675775,1750408234494,-490.0,0.00025678,4]
[366675776,1750408234503,-490.0,0.00025678,4]
[366675777,1750408234514,-1847.02,0.00025678,4]
[366675778,1750408234523,-502.3,0.00025678,4]
[366675779,1750408234533,-656.13,0.00025678,4]
[366675780,1750408234543,-809.34,0.00025678,4]
[366675781,1750408234553,-490.0,0.00025678,4]
[366675782,1750408234563,-592.94,0.00025678,4]
[366675783,1750408234572,-728.67,0.00025678,4]
[366675784,1750408234582,-2693.95,0.00025678,4]
[366675785,1750408234591,-1110.26,0.00025678,4]
[366675786,1750408234600,-542.81,0.00025678,4]
[366675787,1750408234610,-490.0,0.00025678,4]
[366675788,1750408234623,-1987.14,0.00025678,4]
[366675789,1750408234633,-490.0,0.00025678,4]
[366675790,1750408234643,-490.0,0.00025678,4]
[366675791,1750408234653,-3586.96,0.00025678,4]
[366675792,1750408234662,-490.0,0.00025678,4]
[366675793,1750408234673,-490.0,0.00025678,4]
[366675794,1750408234683,-490.0,0.00025678,4]
[366675795,1750408234693,-490.0,0.00025678,4]
[366675796,1750408234702,-490.0,0.00025678,4]
[366675797,1750408234712,-3155.57,0.00025678,4]
[366675798,1750408234721,-490.0,0.00025678,4]
[366675799,1750408234731,-1829.28,0.00025678,4]
[366675800,1750408234741,-490.0,0.00025678,4]
[366675801,1750408234751,-4740.15,0.00025678,4]
[366675802,1750408234760,-490.0,0.00025678,4]
[366675803,1750408234770,-1123.25,0.00025678,4]
[366675804,1750408234780,-490.0,0.00025678,4]
[366675805,1750408234789,-635.64,0.00025678,4]
[366675806,1750408234799,-490.0,0.00025678,2]
[366675807,1750408234809,-618.35,0.00025678,4]
[366675808,1750408234821,-490.0,0.00025678,4]
[366675809,1750408234832,-490.0,0.00025678,4]
[366675810,1750408234842,-501.67,0.00025678,4]
[366675811,1750408234852,-490.0,0.00025678,4]
[366675812,1750408234861,-807.75,0.00025678,4]
[366675813,1750408234870,-490.0,0.00025678,4]
[366675814,1750408234880,-490.0,0.00025678,4]
[366675815,1750408234889,-1264.04,0.00025678,4]
[366675816,1750408234900,-490.0,0.00025678,4]
[366675817,1750408234909,-490.0,0.00025678,2]
[366675818,1750408234920,-2129.698474,0.00025678,4]
[366675819,1750408234930,-490.0,0.00025678,4]
[366675820,1750408234940,-490.0,0.00025678,2]
[366675821,1750408234950,-639.68,0.00025678,4]
[366675822,1750408234959,-490.0,0.00025678,4]
[366675823,1750408234969,-159.305656,0.00025678,4]
[366675824,1750408234978,-900.29,0.00025678,4]
[366675825,1750408234988,-490.0,0.00025678,4]
[366675826,1750408234997,-609.82,0.00025678,4]
[366675827,1750408235007,-509.76,0.00025678,4]
[366675828,1750408235017,-490.0,0.00025678,4]
[366675829,1750408235027,-860.77,0.00025679,4]
[366675830,1750408235036,-490.0,0.00025679,4]
[366675831,1750408235046,-490.0,0.00025679,4]
[366675832,1750408235056,-490.0,0.00025679,4]
[366675833,1750408235066,-1593.46,0.00025679,4]
[366675834,1750408235076,-1349.19388228,0.00025681,2]
[366675835,1750408235086,-818.33693993,0.0002569,2]
[366675836,1750408235095,-409.15,0.000257,2]
[366675837,1750408235105,-1000.0,0.000257,2]
[366675838,1750408235115,-159.01158059,0.000257,2]
[366675839,1750408235127,-1349.19388228,0.00025716,2]
[366675840,1750408235136,-150.0,0.00025727,2]
[366675841,1750408235146,-602.97863667,0.0002573,2]
[366675842,1750408235160,-844.01549107,0.0002573,2]
[366675843,1750408235183,-565.82,0.0002573,2]
[366675849,1750408238607,-196.77299689,0.00025628,2]
[366675850,1750408238617,-152.3464,0.00025678,4]
[366675851,1750408238626,-490.0,0.00025678,4]
[366675852,1750408238636,-490.0,0.00025678,4]
[366675853,1750408238645,-490.0,0.00025678,4]
[366675854,1750408238654,-490.0,0.00025678,4]
[366675855,1750408238664,-8408.88060311,0.0002573,2]
[366675856,1750408238675,-10650.3776936,0.0002573,2]
[366675857,1750408238700,-1072.7340155,0.0002573,2]
[366675858,1750408238711,-391.11297147,0.0002573,2]
[366675859,1750408238720,-150.0,0.00025731,2]
[366675860,1750408238730,-409.15,0.0002574,2]
[366675861,1750408238739,-159.01158059,0.00025748,2]
[366675862,1750408238748,-150.64,0.00025748,2]
[366675863,1750408238758,-4487.08116794,0.00025749,2]
[366675864,1750408238785,-10657.4570422,0.00025749,2]
[366675923,1750408239551,-309.67336056,0.00025749,2]
[366675924,1750408239562,-165.09,0.00025749,2]
[366675926,1750408239573,-910.76,0.00025749,2]
[366675928,1750408239583,-150.0,0.0002575,2]
[366675930,1750408239594,-1349.19388228,0.00025751,2]
[366675932,1750408239604,-321.93506545,0.00025753,4]
[366675948,1750408239757,-168.06493455,0.00025753,4]
[366675950,1750408239766,-490.0,0.00025753,4]
[366675952,1750408239775,-490.0,0.00025753,4]
[366675954,1750408239785,-490.0,0.00025753,4]
[366675956,1750408239795,-490.0,0.00025753,4]
[366675958,1750408239804,-875.61,0.00025753,4]
[366675960,1750408239814,-3015.046054,0.00025753,4]
[366675962,1750408239823,-1158.06,0.00025753,4]
[366675964,1750408239833,-262.32837543,0.00025753,4]
[366675966,1750408239844,-227.67162457,0.00025753,4]
[366675968,1750408239854,-416.00837543,0.00025753,4]
[366675970,1750408239867,-384.31162457,0.00025753,4]
[366675972,1750408239879,-500.05062254,0.00025753,4]
[366675975,1750408239891,-508.2,0.00025753,4]
[366676049,1750408240633,-405.89734009,0.00025678,4]
[366676052,1750408240654,-363.66265991,0.00025678,4]
[366676054,1750408240664,-168.83734009,0.00025678,4]
[366676056,1750408240675,-358.09265991,0.00025678,4]
[366676058,1750408240686,-1412.64,0.00025678,4]
[366676061,1750408240697,-78.82937746,0.00025753,4]
[366676063,1750408240706,-520.18,0.00025753,4]
[366676065,1750408240716,-5223.53,0.00025753,4]
[366676067,1750408240726,-306.8133471,0.00025753,4]
[366676069,1750408240736,-1549.23,0.00025753,4]
[366676071,1750408240746,-490.0,0.00025753,4]
[366676073,1750408240755,-686.11963538,0.00025753,4]
[366676075,1750408240767,-1236.86036462,0.00025753,4]
[366676077,1750408240777,-561.49,0.00025753,4]
[366676079,1750408240787,-1276.14,0.00025753,4]
[366676081,1750408240797,-762.5,0.00025753,4]
[366676083,1750408240807,-500.0,0.00025753,4]
[366676085,1750408240816,-2033.57,0.00025753,4]
[366676087,1750408240826,-1426.66,0.00025753,4]
[366676089,1750408240835,-4785.97,0.00025753,4]
[366676092,1750408240851,-655.61,0.00025753,4]
[366676094,1750408240861,-2732.22,0.00025753,4]
[366676096,1750408240871,-1000.0,0.00025753,5]
[366676098,1750408240884,-1000.0,0.00025753,5]
[366676100,1750408240894,-1000.0,0.00025753,5]
[366676102,1750408240904,-1000.0,0.00025753,5]
[366676104,1750408240914,-1000.0,0.00025753,5]
[366676106,1750408240924,-1000.0,0.00025753,5]
[366676108,1750408240934,-1000.0,0.00025753,5]
[366676110,1750408240944,-1000.0,0.00025753,5]
[366676112,1750408240954,-1000.0,0.00025753,5]
[366676114,1750408240963,-1000.0,0.00025753,5]
[366676116,1750408240974,-1000.0,0.00025753,5]
[366676118,1750408240983,-1000.0,0.00025753,5]
[366676120,1750408240993,-1000.0,0.00025753,5]
[366676122,1750408241003,-1000.0,0.00025753,5]
[366676124,1750408241013,-1000.0,0.00025753,5]
[366676126,1750408241023,-1000.0,0.00025753,5]
[366676128,1750408241032,-1000.0,0.00025753,5]
[366676130,1750408241042,-1000.0,0.00025753,5]